Cogmind - Beta 13 @@@ ROGUE MODE // 2024.05.06 @ 17:53:32 Player: luckinvolved Result: Destroyed by 53-I0W(R) with Subdweller Laser Performance ------------- Evolutions (0) 0 Regions Visited (2) 400 Robots Destroyed (27) 135 Value Destroyed (827) 827 Prototype IDs (1) 20 Alien Tech Used (0) 0 Bonus (0) 0 TOTAL SCORE: 1382 Bonus ------- None Cogmind --------- Core Integrity 0/250 Matter 289/300 Energy 100/100 System Corruption 0% Temperature Cool (12) Movement Treading (320) Ox2 Location -10/Subcaves Parts ------- > --- POWER (1) -------- (None) > --- PROPULSION (2) --- Light Treads > --- UTILITY (2) ------ High-capacity Storage Unit Utility Shielding > --- WEAPON (2) ------- Subdweller Laser > --- INVENTORY (20) --- Ion Engine Subdweller Power Source Improved Heat Sink Structural Scanner Subdweller Optics Signal Interpreter Signal Interpreter Seismic Detector Light Assault Rifle Shotgun Shotgun Peak State ------------ > --- POWER ------------ Light Nuclear Core > --- PROPULSION ------- Wheel Subdweller Monowheel > --- UTILITY ---------- High-capacity Storage Unit Utility Shielding > --- WEAPON ----------- Shotgun Shotgun > --- INVENTORY -------- Ion Engine Subdweller Power Source Wheel Improved Heat Sink Structural Scanner Subdweller Optics Signal Interpreter Signal Interpreter Seismic Detector Light Assault Rifle Shotgun [Rating: 13] Favorites ----------- Power Ion Engine Engine Ion Engine Power Core Light Nuclear Core Propulsion Light Treads Treads Light Treads Wheel Wheel Utility Utility Shielding Storage High-capacity Storage Unit Protection Utility Shielding Weapon Shotgun Energy Gun Subdweller Laser Ballistic Gun Shotgun Launcher Grenade Launcher Build | -11 -10 -10 ------- Run | Yrd Mat Sub Slots Evolved . | . . . Power . | . . . Propulsion . | . . . Utility . | . . . Weapon . | . . . Parts Attached 26 | 6 10 10 Power 2 | 1 . 1 Engine 1 | 1 . . Core 1 | . . 1 Reactor . | . . . Propulsion 6 | 2 . 4 Treads 3 | 2 . 1 Leg . | . . . Wheel 3 | . . 3 Hover . | . . . Flight . | . . . Utility 4 | 1 3 . Device . | . . . Storage 3 | 1 2 . Processor . | . . . Hackware . | . . . Protection 1 | . 1 . Artifact . | . . . Weapon 14 | 2 7 5 Energy Gun 3 | . 2 1 Energy Cannon . | . . . Ballistic Gun 8 | 2 3 3 Ballistic Cannon . | . . . Launcher 3 | . 2 1 Special Weapon . | . . . Impact Weapon . | . . . Slashing Weapon . | . . . Piercing Weapon . | . . . Special Melee Weapon . | . . . Unidentified Prototypes 1 | . 1 . Parts Lost 10 | . 1 9 Power 2 | . . 2 Propulsion 4 | . . 4 Utility . | . . . Weapon 4 | . 1 3 Highest Loss Streak 2 | . 1 2 To Critical Strikes . | . . . Average Slot Usage (%) 91 | . 91 91 Engine 8 | . 14 2 Core 5 | . . 11 Treads 19 | . 28 10 Wheel 4 | . . 9 Storage 14 | . 14 14 Protection 10 | . 6 14 Energy Gun 4 | . . 8 Ballistic Gun 22 | . 26 19 Naked Turns . | . . . Heaviest Build 53 | 14 52 53 Greatest Support 40 | 40 40 40 Greatest Overweight (x) 5 | . 1 5 Average Overweight (x) 1 | . . 3 Largest Inventory Capacity 20 | 8 20 20 Average Capacity 16 | 7 13 20 Most Carried 13 | 4 12 13 Average Carried 9 | 2 9 11 Final Capacity 20 | 8 20 20 Final Carried 12 | 4 12 11 Class Distribution -------------------- 100% | Mutant Dominant Class ---------------- Mutant | -10/Materials Mutant | -10/Subcaves Resources | -11 -10 -10 ----------- Run | Yrd Mat Sub Matter Collected 960 | 209 422 329 Remotely . | . . . Salvage Created 844 | . 588 256 Parts 49 | . 29 20 Haulers Intercepted . | . . . Recyclers Shooed . | . . . Parts Field Recycled . | . . . Retrieved Matter . | . . . Parts Self-Destructed 12 | . . 12 Prevented . | . . . Kills | -11 -10 -10 ------- Run | Yrd Mat Sub Combat Hostiles Destroyed 23 | . 13 10 Guns 19 | . 13 6 AOE 4 | . . 4 Classes Destroyed 7 | . 3 4 Builder 1 | . 1 . Turret 2 | . . 2 Watcher 1 | . 1 . Swarmer 5 | . . 5 Grunt 13 | . 13 . Sentry 1 | . . 1 Subdweller 4 | . . 4 Best Kill Streak 6 | . 2 6 Combat Bots Only 4 | . 2 4 Max Kills in Single Turn 2 | . 1 2 Gunslinging . | . . . Exploded 2 | . . 2 Melee . | . . . Uniques/NPCs Destroyed . | . . . Combat | -11 -10 -10 -------- Run | Yrd Mat Sub Hostile Shots Fired 159 | . 71 88 Missed 51 | . 24 27 Damage Taken 1432 | . 594 838 Core 263 | . 101 162 Absorbed by Shields . | . . . Redirected to Shielding 8 | . . 8 Core Remaining (%) 100 | 100 . . Volleys Fired 87 | . 48 39 Largest 2 | . 2 2 Hottest 83 | . 46 83 Shots Fired 159 | . 90 69 Gun 151 | . 87 64 Cannon . | . . . Launcher 8 | . 3 5 Special . | . . . Kinetic 140 | . 87 53 Thermal 11 | . . 11 Explosive 8 | . 3 5 Electromagnetic . | . . . Robot Hit Streak 16 | . 12 16 Robot Miss Streak 5 | . 5 3 Penetration Max . | . . . Secondary Targets 4 | . 2 2 Max Gunslinging Chain 1 | . 1 1 Shots Hit Robots 100 | . 60 40 Core Hits 64 | . 35 29 Critical Kills 1 | . . 1 Critical Parts Destroyed . | . . . Critical Strikes 1 | . . 1 Destroy 1 | . . 1 Melee Attacks . | . . . Impact . | . . . Slashing . | . . . Piercing . | . . . Sneak Attacks . | . . . Combat Hostiles . | . . . Follow-up Attacks . | . . . Damage Inflicted 1737 | . 798 939 Guns 1488 | . 798 690 Cannons . | . . . Explosions 249 | . . 249 Melee . | . . . Ramming . | . . . Kinetic 1348 | . 798 550 Thermal 140 | . . 140 Explosive 249 | . . 249 Electromagnetic . | . . . Impact . | . . . Slashing . | . . . Piercing . | . . . Highest Corruption . | . . . Average Corruption . | . . . Corruption Purged . | . . . Corruption Blocked . | . . . Overload Shots . | . . . Overflow Damage 5 | . . 5 Projectiles . | . . . Explosions 5 | . . 5 Melee . | . . . Knockbacks . | . . . Impact . | . . . Kinetic . | . . . Secondary . | . . . Self-Inflicted Damage 32 | . . 32 Shots 1 | . . 1 Rammed . | . . . Targets Rammed . | . . . Kicked . | . . . Crushed . | . . . Highest Temperature 20 | . 20 11 Average Temperature 4 | . 4 5 Received Heat Transfer 654 | . 348 306 Siege Activations . | . . . Robots Corrupted . | . . . Combat Hostiles . | . . . Parts Fried . | . . . Impact Corruptions . | . . . Robots Melted . | . . . Combat Hostiles . | . . . Parts Melted . | . . . Heat Transferred 175 | . . 175 Parts Sabotaged . | . . . Parts Stolen . | . . . Parts Stripped . | . . . Power Chain Reactions . | . . . Alert | -11 -10 -10 ------- Run | Yrd Mat Sub Peak Influence 125 | . 125 . Initial . | . . . Average 52 | . 56 . Maximum Alert Level . | . . . Low Security (%) 100 | 100 100 . Level 1 . | . . . Level 2 . | . . . Level 3 . | . . . Level 4 . | . . . Level 5 . | . . . High Security . | . . . Max Security . | . . . Squads Dispatched 4 | . 4 . Investigation 2 | . 2 . Extermination . | . . . Reinforcement 2 | . 2 . Assault . | . . . Garrison . | . . . Intercept . | . . . Searches Triggered . | . . . Construction Impeded . | . . . Haulers Reinforced . | . . . Active Scanning Responses . | . . . Cargo Convoy Interrupts . | . . . Stealth | -11 -10 -10 --------- Run | Yrd Mat Sub Distress Signals . | . . . Communications Jammed . | . . . Distress Signals . | . . . Times Spotted 58 | . 20 38 Peak Tracking Total 4 | . 4 3 Tactical Retreats 3 | . 1 2 Traps | -11 -10 -10 ------- Run | Yrd Mat Sub Traps Triggered 3 | . 2 1 Indirectly . | . . . Trap Hack Attempts . | . . . Triggered . | . . . Disarmed . | . . . Reprogrammed . | . . . Reused . | . . . Traps Extracted . | . . . Installed 1 | . . 1 Triggered . | . . . Machines | -11 -10 -10 ---------- Run | Yrd Mat Sub Machines Disabled 4 | . 1 3 Max in Single Turn 2 | . 1 2 Machines Repaired . | . . . Machines Dismantled . | . . . Machines Sabotaged . | . . . Overloaded Fab Kills . | . . . Hacking | -11 -10 -10 --------- Run | Yrd Mat Sub Machines Accessed 2 | . 1 1 Terminals 1 | . 1 . Fabricators . | . . . Repair Stations . | . . . Recycling Units . | . . . Scanalyzers . | . . . Garrison Access . | . . . Total Hacks 2 | . 1 1 Successful 2 | . 1 1 Failed . | . . . Catastrophic . | . . . Database Lockouts . | . . . Manual 1 | . . 1 Terminals 1 | . 1 . Fabricators . | . . . Repair Stations . | . . . Recycling Units . | . . . Scanalyzers . | . . . Garrison Access . | . . . Terminal Hacks 2 | . 1 1 Record 1 | . . 1 Zone Layout 1 | . 1 . Fabricator Hacks . | . . . Repair Station Hacks . | . . . Recycling Unit Hacks . | . . . Scanalyzer . | . . . Garrison Access Hacks . | . . . Unauthorized Hacks . | . . . Terminals . | . . . Fabricators . | . . . Repair Stations . | . . . Recycling Units . | . . . Scanalyzers . | . . . Garrison Access . | . . . Data Cores Recovered . | . . . Used . | . . . Hacking Detections . | . . . Full Trace Events . | . . . Feedback Events . | . . . Feedback Blocked . | . . . Robot Schematics Acquired . | . . . Robots Built . | . . . Authchips . | . . . Time . | . . . Total Robot Build Rating . | . . . Part Schematics Acquired . | . . . Parts Built . | . . . Authchips . | . . . Time . | . . . Total Part Build Rating . | . . . Parts Repaired . | . . . Time . | . . . Parts Recycled . | . . . Recycled Matter . | . . . Retrieved Matter . | . . . Retrieved Components . | . . . Parts Scanalyzed . | . . . Part Schematics Acquired . | . . . Parts Damaged . | . . . Bothacking | -11 -10 -10 ------------ Run | Yrd Mat Sub Used RIF Installer . | . . . Robots Hacked . | . . . Non-combat . | . . . Combat . | . . . Robot Hacks Applied . | . . . Relay Couplers Released . | . . . Fabnet Peak Effective % . | . . . Robots Rewired . | . . . Allies Hacked . | . . . Hacks Repelled . | . . . Allies | -11 -10 -10 -------- Run | Yrd Mat Sub Total Allies . | . . . Largest Group . | . . . Highest-Rated Group . | . . . Highest-Rated Ally . | . . . Total Orders . | . . . Ally Attacks . | . . . Total Damage . | . . . Kills . | . . . Allies Corrupted . | . . . Allies Melted . | . . . Intel | -11 -10 -10 ------- Run | Yrd Mat Sub Robot Analysis Total . | . . . Derelict Logs Recovered 1 | . . 1 Drone Launches . | . . . Drone Recoveries . | . . . Exploration | -11 -10 -10 ------------- Run | Yrd Mat Sub Turns Passed 3216 | 108 1526 1582 Spaces Moved 1240 | 61 552 627 Core 1 | 1 . . Treads 794 | 60 552 182 Legs . | . . . Wheels 445 | . . 445 Hover . | . . . Flight . | . . . Fastest Speed 50 | 50 160 107 Average Speed 188 | 158 190 189 Slowest Speed 320 | 160 240 320 Overloaded Moves . | . . . Propulsion Burnouts . | . . . Robots Hopped . | . . . Cave-ins Triggered . | . . . Exploration Rate (%) 47 | 4 98 40 Regions Visited 2 Branch Regions 1 Pre-discovered Areas . | . . . Known Exits Taken . | . . . Unknown Exits Taken 2 | 1 1 . Scrap Searched 1 | . . 1 Spaces Dug . | . . . Terrain Destroyed 40 | . 19 21 Melee . | . . . Projectile . | . . . AOE 40 | . 19 21 Terrain Rammed . | . . . Walls Destroyed . | . . . Machines Disabled . | . . . Actions | -11 -10 -10 --------- Run | Yrd Mat Sub Total 1957 | 70 937 950 Wait 580 | . 313 267 Move 1238 | 60 551 627 Hop . | . . . Pick Up 16 | 4 9 3 Fast Attach 15 | 6 6 3 Attach 6 | . . 6 Detach 2 | . . 2 Swap 5 | . 4 1 Drop 7 | . 6 1 Fire 87 | . 48 39 Melee . | . . . Ram . | . . . Kick . | . . . Crush . | . . . Escape Stasis . | . . . Rewire . | . . . Trap 1 | . . 1 Miscellaneous . | . . . Route ------- -11/Scrapyard -10/Materials (discovered 6 exits: [*Mat x3] / [*Min x2] / *Sub) -10/Subcaves (discovered 1 exit: [*Rec]) History --------- Turn | Location | Event 25 | -11/Scrapyard | Discovered new exit (range 15) 109 | -11/Scrapyard | Entered Materials 315 | -10/Materials | Build established: Mutant 437 | -10/Materials | Discovered new exit (range 10) 698 | -10/Materials | Discovered new exit (range 16) 931 | -10/Materials | Discovered new exit (range 7) 1246 | -10/Materials | Discovered new exit (range 10) 1458 | -10/Materials | Discovered new exit (range 8) 1562 | -10/Materials | Discovered new exit (range 10) 1635 | -10/Materials | Entered Subcaves 1657 | -10/Subcaves | Discovered new exit (range 12) 1664 | -10/Subcaves | Core integrity fell below 50% 1887 | -10/Subcaves | Visited Clippyterm 2622 | -10/Subcaves | Core integrity fell below 20% 3217 | -10/Subcaves | Destroyed by 53-I0W(R) with Subdweller Laser Last Messages --------------- 02516_ Subatomizers dissect the Lgt. Assault Rifle. 02518_ Destroyed Heat Sink. 02521_ Y-45 Defender destroyed. 02524_ Acquired 63 matter. 02526_ Lgt. Assault Rifle fries itself beyond repair. 02527_ Acquired Lgt. Treads. 02529_ Lgt. Armor Plating fries itself beyond repair. 02529_ Subatomizers dissect the Heat Sink. 02530_ Heat Sink fries itself beyond repair. 02610_ K0-R2E(R) destroyed. 02621_ Wheel destroyed. 02621_ 9G-64B(R) destroyed. 02623_ Subatomizers dissect the Disposable Heat Sink. 02627_ Acquired 48 matter. 02633_ Subatomizers dissect the Disposable Heat Sink. 02806_ Subatomizers dissect the Disposable Heat Sink, destroying it. PY-1U0(R) emerges from concealment. 03215_ Lgt. Nuclear Core destroyed. 03216_ Sub. Laser shoots sparks and powers down. 03217_ Shotgun destroyed. Map ----- +----------------------------------------------------+ | ?????????????????????????????????????????????? | | ?????????????????????????????????????????????? | | ?????????????????????????????????????????????? | | ?????????????????????????????????????????????? | | ?????????????????????????????????????????????? | | ?????????????????????????????????????????????? | | ?????????????????????????????????????????????? | | ?????????????????????????????????????????????? | | ?????????????????????????????????????????????? | | ?????????????????????????????????????????????? | | ?????????????????????????????????????????????? | | ?????????????????????????????????????????????? | | ?????????????????????????????????????????????? | | ?????????????????????????????????????????????? | | ???????????????#####?????????????????????????? | | ??????????????## #?????????????????????????? | | ???????????#### #?????????????????????????? | | ##????#???## ##????????????????????????? | | #????# ## ###??????????????????????? | | #????# ^ ##?????????????????????? | | #?????? ##????????????????????? | | ##????????????# ^ ##???????????????????? | | ??????????????# ##??????????????????? | | ?????????###### ##?????????????????? | | ????###### ## ##????????????????? | | ????# #######@ #????????????????? | | ???## ### #?????##RR#????????????????? | | ?### ^ ##?# #???????R #????????????????? | | ?# ####??## ????? #????????????????? | | ## ^ ##??????### ##???? #????????????????? | | ## #?????????# #?????? #????????????????? | | #?????????# #?????? ????????????????? | | ^ ## #?????????# #????? ????????????????? | | ######?????????# #???? ???????????????? | | ##??????????????## #????? ???????????????? | | #????????????????? #????? ???????????????? | | #????????????????? #????? ??????????????? | | ?????????????????? "????? "#??????????????? | | #????????????????? " ??????#???????????????? | | ##???????????????? " ??????????????????????? | | #???????????????? "???????????????????????? | | ##??????????????? #?????????????????????????? | | #??????????????????????????????????????????? | | ##??????????????????????????????????????????? | | #??????????????????????????????????????????? | | ##??????????????????????????????????????????? | | #???????????????????????????????????????????? | | ##???????????????????????????????????????????? | | ?????????????????????????????????????????????? | | ?????????????????????????????????????????????? | +----------------------------------------------------+ Best States ------------- Heat Dissipation 25 Energy Generation 14 Energy Capacity 250 Matter Stores 300 Matter Capacity 300 Sight Range 16 Terrain Scan Density 10 Utility Shielding 33 Evasion (%) 40 Recoil Reduction 2 Item Schematics ----------------- None Robot Schematics ------------------ None Fabricated ------------ Nothing Alien Tech Used ----------------- None Achievements -------------- None Challenges ------------ None Game ------ Seed UltimateCentriumBeam Manual? 0 Play Time 00:14:44 Cumulative 81.2 hours Start 2024.05.06 @ 17:40:50 End 2024.05.06 @ 17:53:32 Sessions 1 Manual Loads 0 Difficulty Rogue Special Mode None Game No. 121 Rogue 116 Adventurer 5 Explorer 0 Win Type - Total 2 Types 1/0/0/1/0/0/0/0/0 Lore% 41 Gallery% 61 Achievement% 48 Wizard Run 0 Options --------- Layout 0 ASCII 0 Keyboard 0 Movement Mouse Keybinds 0 Fullscreen 1 Font 24/Smallcaps Map View 76x50 Zoom Use 39% Tactical HUD 1 Map Filters NONE Filters NONE Steam 1 RUN: 32d13fa0-645f-438a-98a1-3a9b1d200b35